[Event "French-ch Youth U12 2022"]
[Site "Agen"]
[Date "2022.04.22"]
[Round "7.7"]
[White "Bernard, Ines"]
[Black "Castagnerol, Cerise"]
[Result "1/2-1/2"]
[ECO "A01"]
[WhiteElo "1430"]
[BlackElo "1312"]
[Annotator "NA RC COMBH"]
[PlyCount "86"]
[EventDate "2022.04.17"]
[EventType "swiss"]
[EventCountry "FRA"]
[SourceTitle "playchess.com"]
[Source "ChessBase"]
[SourceQuality "1"]
[TimeControl "5400+30"]

1. b3 {[%emt 0:00:01]} e5 {[%emt 0:00:29]} 2. Bb2 {[%emt 0:00:07]} d6 {[%emt 0:00:14]} 3. e3 {[%emt 0:00:15]} Nc6 {[%emt 0:00:35]} 4. g3 {[%emt 0:00:48]} Nf6 {[%emt 0:03:01]} 5. Bg2 {[%emt 0:03:24]} Be7 {[%emt 0:01:43]} 6. f4 {[%emt 0:01:24]} Bg4 {[%emt 0:05:03]} 7. Ne2 {[%emt 0:07:00]} exf4 {[%emt 0:02:47]} 8. exf4 {[%emt 0:00:44]} d5 {[%emt 0:03:34]} 9. O-O {[%emt 0:07:20]} O-O {[%emt 0:01:45]} 10. h3 {[%emt 0:04:24]} Bc5+ {[%emt 0:02:29]} 11. Kh2 {[%emt 0:01:00]} Bf5 {[%emt 0:03:37]} 12. Nbc3 {[%emt 0:06:00]} Re8 {[%emt 0:08:22]} 13. Ng1 {[%emt 0:06:39]} Ne4 {[%emt 0:17:25]} 14. d3 {[%emt 0:04:53]} Nxc3 {[%emt 0:05:39]} 15. Bxc3 {[%emt 0:00:23]} h6 {[%emt 0:01:31]} 16. Qh5 {[%emt 0:02:54]} Bxg1+ {[%emt 0:05:40]} 17. Rxg1 {[%emt 0:03:10]} Be6 {[%emt 0:04:25]} 18. f5 {[%emt 0:04:45]} Bc8 {[%emt 0:01:42]} 19. f6 {[%emt 0:01:40]} d4 {[%emt 0:00:26]} 20. fxg7 {[%emt 0:10:17]} Kxg7 {[%emt 0:06:20]} 21. Bd2 {[%emt 0:01:12]} Qf6 {[%emt 0:01:07]} 22. Raf1 {[%emt 0:00:39]} Qg6 {[%emt 0:00:14]} 23. Bxh6+ {[%emt 0:01:23]} Kg8 {[%emt 0:00:15]} 24. Qh4 {[%emt 0:01:05]} Re6 25. Be4 {[%emt 0:00:39]} Qxh6 {[%emt 0:02:30]} 26. Bd5 {[%emt 0:03:34]} Qxh4 {[%emt 0:03:44]} 27. gxh4+ {[%emt 0:00:12]} Kf8 {[%emt 0:00:47]} 28. Bxe6 {[%emt 0:00:40]} Bxe6 {[%emt 0:00:08]} 29. a3 {[%emt 0:00:58]} Ke7 {[%emt 0:00:33]} 30. Rg5 {[%emt 0:01:15]} Rh8 {[%emt 0:02:07]} 31. Kg3 {[%emt 0:00:47]} f6 {[%emt 0:00:55]} 32. Rg7+ {[%emt 0:01:20]} Bf7 {[%emt 0:00:14]} 33. Rg4 {[%emt 0:00:28]} Rd8 {[%emt 0:01:12]} 34. Re4+ {[%emt 0:01:26]} Ne5 {[%emt 0:01:25]} 35. Ref4 {[%emt 0:01:05]} Rd6 {[%emt 0:00:33]} 36. Re1 {[%emt 0:02:52]} c5 {[%emt 0:01:56]} 37. b4 {[%emt 0:00:30]} cxb4 {[%emt 0:01:13]} 38. axb4 {[%emt 0:00:21]} Rc6 {[%emt 0:01:40]} 39. Re2 {[%emt 0:01:33]} Rd6 {[%emt 0:01:21]} 40. Re1 {[%emt 0:02:57]} Bg6 {[%emt 0:01:49]} 41. Ra1 {[%emt 0:01:21]} a6 {[%emt 0:01:22]} 42. Rb1 {[%emt 0:01:21]} b5 {[%emt 0:00:43]} 43. Ra1 {[%emt 0:00:51]} Ke6 {[%emt 0:02:35]} 1/2-1/2

[Event "French-ch Youth U12 2022"]
[Site "Agen"]
[Date "2022.04.22"]
[Round "7.8"]
[White "Mence, Eline"]
[Black "Menard, Emma"]
[Result "1/2-1/2"]
[ECO "D00"]
[WhiteElo "1499"]
[BlackElo "1061"]
[Annotator "NA RC COMBH"]
[PlyCount "47"]
[EventDate "2022.04.17"]
[EventType "swiss"]
[EventCountry "FRA"]
[SourceTitle "playchess.com"]
[Source "ChessBase"]
[SourceQuality "1"]
[TimeControl "5400+30"]

1. d4 {[%emt 0:00:03]} d5 {[%emt 0:00:08]} 2. Bf4 {[%emt 0:00:09]} e6 {[%emt 0:00:27]} 3. e3 {[%emt 0:00:12]} Nf6 {[%emt 0:00:13]} 4. Nd2 {[%emt 0:00:28]} Nbd7 {[%emt 0:00:41]} 5. Ngf3 {[%emt 0:00:32]} Be7 {[%emt 0:00:35]} 6. Bd3 {[%emt 0:01:00]} O-O {[%emt 0:00:25]} 7. Ne5 {[%emt 0:00:46]} Nxe5 {[%emt 0:02:58]} 8. dxe5 {[%emt 0:00:22]} Nd7 {[%emt 0:00:43]} 9. Qh5 {[%emt 0:02:43]} g6 {[%emt 0:02:23]} 10. Qg4 {[%emt 0:00:29]} Re8 {[%emt 0:02:28]} 11. h4 {[%emt 0:01:00]} h5 {[%emt 0:01:00]} 12. Qh3 {[%emt 0:01:53]} Bf8 {[%emt 0:08:56]} 13. g4 {[%emt 0:01:05]} hxg4 {[%emt 0:01:20]} 14. Qxg4 {[%emt 0:00:15]} Bg7 {[%emt 0:00:46]} 15. h5 {[%emt 0:14:47]} Bxe5 {[%emt 0:09:46]} 16. hxg6 {[%emt 0:00:32]} Qf6 {[%emt 0:02:30]} 17. gxf7+ {[%emt 0:00:17]} Kxf7 {[%emt 0:00:12]} 18. Rh7+ {[%emt 0:00:32]} Qg7 {[%emt 0:02:25]} 19. Rxg7+ {[%emt 0:00:13]} Bxg7 {[%emt 0:00:05]} 20. Bg6+ {[%emt 0:00:18]} Kf8 {[%emt 0:00:37]} 21. Bxe8 {[%emt 0:00:15]} Kxe8 {[%emt 0:00:09]} 22. Qxg7 {[%emt 0:00:08]} c6 {[%emt 0:01:51]} 23. Bd6 {[%emt 0:00:18]} Kd8 {[%emt 0:01:55]} 24. Qe7# {[%emt 0:00:09]} 1/2-1/2

[Event "French-ch Youth U12 2022"]
[Site "Agen"]
[Date "2022.04.23"]
[Round "8.1"]
[White "Khoury, Theo"]
[Black "Bonelli Maestracci, Pierre Joseph"]
[Result "1-0"]
[ECO "B36"]
[WhiteElo "1878"]
[BlackElo "1629"]
[Annotator "NA RC COMBH"]
[PlyCount "51"]
[EventDate "2022.04.17"]
[EventType "swiss"]
[EventCountry "FRA"]
[SourceTitle "playchess.com"]
[Source "ChessBase"]
[SourceQuality "1"]
[TimeControl "5400+30"]

1. e4 {[%emt 0:00:05]} c5 {[%emt 0:00:05]} 2. Nf3 {[%emt 0:00:08]} Nc6 {[%emt 0:00:09]} 3. d4 {[%emt 0:00:06]} cxd4 {[%emt 0:00:11]} 4. Nxd4 {[%emt 0:00:07]} g6 {[%emt 0:00:19]} 5. c4 {[%emt 0:00:06]} Nf6 {[%emt 0:00:16]} 6. Nc3 {[%emt 0:00:07]} Nxd4 {[%emt 0:00:14]} 7. Qxd4 {[%emt 0:00:06]} d6 {[%emt 0:00:08]} 8. Be2 {[%emt 0:00:27]} Bg7 {[%emt 0:00:12]} 9. Be3 {[%emt 0:00:12]} O-O {[%emt 0:00:14]} 10. Qd2 {[%emt 0:00:09]} a5 {[%emt 0:00:35]} 11. O-O {[%emt 0:01:00]} a4 {[%emt 0:01:18]} 12. Rad1 {[%emt 0:01:55]} Bd7 {[%emt 0:01:54]} 13. f3 {[%emt 0:04:32]} Qa5 {[%emt 0:05:34]} 14. c5 {[%emt 0:05:49]} Be6 {[%emt 0:02:33]} 15. cxd6 {[%emt 0:01:24]} Rfd8 {[%emt 0:02:50]} 16. Nd5 {[%emt 0:02:39]} Qxd2 {[%emt 0:05:11]} 17. Nxe7+ {[%emt 0:00:32]} Kh8 {[%emt 0:00:16]} 18. Rxd2 {[%emt 0:00:11]} Ne8 {[%emt 0:04:28]} 19. Rfd1 {[%emt 0:02:01]} Be5 {[%emt 0:03:21]} 20. f4 {[%emt 0:01:52]} Bg7 {[%emt 0:01:40]} 21. Bb6 {[%emt 0:01:04]} Rd7 {[%emt 0:01:25]} 22. Bb5 {[%emt 0:00:12]} Nf6 {[%emt 0:00:41]} 23. Bxd7 {[%emt 0:00:55]} Nxd7 {[%emt 0:00:13]} 24. Bd4 {[%emt 0:00:16]} f6 {[%emt 0:00:31]} 25. Rc1 {[%emt 0:01:53]} Bh6 {[%emt 0:02:17]} 26. g3 {[%emt 0:01:28]} 1-0

[Event "French-ch Youth U12 2022"]
[Site "Agen"]
[Date "2022.04.23"]
[Round "8.2"]
[White "Borne, Felix"]
[Black "Lefrancois, Jean"]
[Result "1-0"]
[ECO "D31"]
[WhiteElo "1780"]
[BlackElo "1476"]
[Annotator "NA RC COMBH"]
[PlyCount "85"]
[EventDate "2022.04.17"]
[EventType "swiss"]
[EventCountry "FRA"]
[SourceTitle "playchess.com"]
[Source "ChessBase"]
[SourceQuality "1"]
[TimeControl "5400+30"]

1. d4 {[%emt 0:00:02]} d5 {[%emt 0:00:10]} 2. c4 {[%emt 0:00:07]} e6 {[%emt 0:00:12]} 3. Nc3 {[%emt 0:00:06]} c6 {[%emt 0:00:10]} 4. Nf3 {[%emt 0:00:48]} dxc4 {[%emt 0:00:17]} 5. g3 {[%emt 0:00:20]} b5 {[%emt 0:01:06]} 6. a4 {[%emt 0:00:19]} Bb4 {[%emt 0:00:41]} 7. Bg2 {[%emt 0:00:30]} Bb7 {[%emt 0:00:54]} 8. O-O {[%emt 0:00:15]} a6 {[%emt 0:03:09]} 9. Ne4 {[%emt 0:06:35]} Nd7 {[%emt 0:16:01]} 10. Ne5 {[%emt 0:01:28]} Nxe5 {[%emt 0:09:25]} 11. dxe5 {[%emt 0:00:06]} Qc7 {[%emt 0:04:45]} 12. Bd2 {[%emt 0:15:56]} Be7 {[%emt 0:03:21]} 13. axb5 {[%emt 0:24:27]} axb5 {[%emt 0:03:12]} 14. Rxa8+ {[%emt 0:05:41]} Bxa8 {[%emt 0:00:27]} 15. Qa1 {[%emt 0:00:44]} Qb8 {[%emt 0:05:23]} 16. Rd1 {[%emt 0:12:31]} f5 {[%emt 0:17:07]} 17. exf6 {[%emt 0:00:36]} Nxf6 {[%emt 0:02:03]} 18. Bf4 {[%emt 0:00:36]} Qc8 {[%emt 0:02:23]} 19. Ng5 {[%emt 0:04:31]} e5 {[%emt 0:06:50]} 20. Bh3 {[%emt 0:02:25]} Qb7 {[%emt 0:00:55]} 21. Bxe5 {[%emt 0:01:40]} h6 {[%emt 0:02:29]} 22. Ne6 {[%emt 0:01:13]} Kf7 {[%emt 0:00:42]} 23. Nf4 {[%emt 0:01:50]} g5 {[%emt 0:00:41]} 24. Bxf6 {[%emt 0:01:07]} Bxf6 {[%emt 0:01:43]} 25. Rd7+ {[%emt 0:01:10]} Qxd7 {[%emt 0:00:11]} 26. Bxd7 {[%emt 0:00:05]} gxf4 {[%emt 0:00:08]} 27. Bf5 {[%emt 0:00:38]} fxg3 {[%emt 0:01:14]} 28. hxg3 {[%emt 0:00:39]} Rd8 {[%emt 0:00:25]} 29. Qa7+ {[%emt 0:00:20]} Be7 {[%emt 0:00:20]} 30. Qe3 {[%emt 0:00:58]} Rd6 {[%emt 0:00:48]} 31. f4 {[%emt 0:01:53]} c5 {[%emt 0:01:12]} 32. Qc1 {[%emt 0:03:02]} Bf6 {[%emt 0:01:19]} 33. e4 {[%emt 0:00:38]} Bd4+ {[%emt 0:01:54]} 34. Kf1 {[%emt 0:00:29]} Ra6 {[%emt 0:01:02]} 35. Bd7 {[%emt 0:04:39]} Bxe4 {[%emt 0:02:01]} 36. Bxb5 {[%emt 0:00:36]} Ra5 {[%emt 0:02:33]} 37. Bxc4+ {[%emt 0:00:17]} Kf6 {[%emt 0:03:03]} 38. Qe1 {[%emt 0:00:34]} Ra4 {[%emt 0:00:16]} 39. Bb5 {[%emt 0:00:32]} Ra2 {[%emt 0:03:53]} 40. Qxe4 {[%emt 0:00:26]} Rxb2 {[%emt 0:00:24]} 41. Bc4 {[%emt 0:00:14]} Rb6 {[%emt 0:00:30]} 42. Qh7 {[%emt 0:00:35]} Rb4 {[%emt 0:00:40]} 43. Qf7# {[%emt 0:00:07]} 1-0

[Event "French-ch Youth U12 2022"]
[Site "Agen"]
[Date "2022.04.23"]
[Round "8.3"]
[White "Contie, Lilio"]
[Black "Charlier, Antoine"]
[Result "0-1"]
[ECO "C47"]
[WhiteElo "1606"]
[BlackElo "1855"]
[Annotator "NA RC COMBH"]
[PlyCount "76"]
[EventDate "2022.04.17"]
[EventType "swiss"]
[EventCountry "FRA"]
[SourceTitle "playchess.com"]
[Source "ChessBase"]
[SourceQuality "1"]
[TimeControl "5400+30"]

1. e4 {[%emt 0:00:05]} e5 {[%emt 0:00:13]} 2. Nf3 {[%emt 0:00:11]} Nc6 {[%emt 0:00:11]} 3. Nc3 {[%emt 0:00:14]} Nf6 {[%emt 0:00:31]} 4. h3 {[%emt 0:00:21]} d6 {[%emt 0:04:24]} 5. d4 {[%emt 0:03:06]} exd4 {[%emt 0:06:44]} 6. Nxd4 {[%emt 0:01:42]} Bd7 {[%emt 0:01:51]} 7. Bb5 {[%emt 0:09:26]} h6 {[%emt 0:05:33]} 8. Bf4 {[%emt 0:06:41]} Be7 {[%emt 0:09:07]} 9. Nf5 {[%emt 0:08:14]} Bxf5 {[%emt 0:00:51]} 10. exf5 {[%emt 0:01:30]} Qd7 {[%emt 0:05:25]} 11. Qf3 {[%emt 0:16:17]} O-O {[%emt 0:21:04]} 12. Bxc6 {[%emt 0:13:48]} bxc6 {[%emt 0:08:53]} 13. Be3 {[%emt 0:01:43]} d5 {[%emt 0:03:31]} 14. Ne2 {[%emt 0:05:55]} c5 {[%emt 0:11:57]} 15. c3 {[%emt 0:01:59]} Rfb8 {[%emt 0:02:31]} 16. b3 {[%emt 0:07:14]} a5 {[%emt 0:03:34]} 17. O-O {[%emt 0:01:15]} a4 {[%emt 0:01:05]} 18. Rab1 {[%emt 0:02:16]} axb3 {[%emt 0:01:15]} 19. Rxb3 {[%emt 0:02:05]} Rxb3 {[%emt 0:02:29]} 20. axb3 {[%emt 0:00:12]} Rb8 {[%emt 0:00:32]} 21. Rb1 {[%emt 0:01:14]} c4 {[%emt 0:01:33]} 22. b4 {[%emt 0:05:01]} c5 {[%emt 0:00:28]} 23. Bxh6 {[%emt 0:01:14]} Bd6 {[%emt 0:02:55]} 24. Bd2 {[%emt 0:02:22]} cxb4 {[%emt 0:03:56]} 25. cxb4 {[%emt 0:00:58]} Qa4 {[%emt 0:01:06]} 26. Bc3 {[%emt 0:03:57]} Ne4 {[%emt 0:01:09]} 27. Qg4 {[%emt 0:02:11]} Nxc3 {[%emt 0:00:31]} 28. Nxc3 {[%emt 0:00:07]} Qc2 {[%emt 0:00:36]} 29. f6 {[%emt 0:00:58]} g6 {[%emt 0:00:15]} 30. Qf3 {[%emt 0:01:43]} d4 {[%emt 0:00:35]} 31. Qd5 {[%emt 0:01:06]} dxc3 {[%emt 0:00:25]} 32. Rd1 {[%emt 0:00:17]} Bf8 {[%emt 0:00:35]} 33. Ra1 {[%emt 0:00:32]} Qd3 {[%emt 0:00:30]} 34. Qe5 {[%emt 0:00:29]} Bd6 {[%emt 0:00:24]} 35. Qg5 {[%emt 0:00:26]} c2 {[%emt 0:00:12]} 36. g3 {[%emt 0:00:52]} Qd1+ {[%emt 0:00:23]} 37. Kh2 {[%emt 0:00:15]} Qxa1 {[%emt 0:00:14]} 38. Qh6 {[%emt 0:00:04]} Qxf6 {[%emt 0:00:17]} 0-1

[Event "French-ch Youth U12 2022"]
[Site "Agen"]
[Date "2022.04.23"]
[Round "8.4"]
[White "Pon Le Brun, Gregoire"]
[Black "Breuil, Virgile"]
[Result "0-1"]
[ECO "A06"]
[WhiteElo "1392"]
[BlackElo "1829"]
[Annotator "NA RC COMBH"]
[PlyCount "144"]
[EventDate "2022.04.17"]
[EventType "swiss"]
[EventCountry "FRA"]
[SourceTitle "playchess.com"]
[Source "ChessBase"]
[SourceQuality "1"]
[TimeControl "5400+30"]

1. Nf3 {[%emt 0:00:02]} d5 {[%emt 0:00:47]} 2. g3 {[%emt 0:00:10]} Nf6 {[%emt 0:00:35]} 3. Bg2 {[%emt 0:00:12]} Nc6 {[%emt 0:00:39]} 4. d4 {[%emt 0:06:42]} Bf5 {[%emt 0:01:12]} 5. O-O {[%emt 0:12:55]} e6 {[%emt 0:01:25]} 6. c3 {[%emt 0:08:17]} Be7 {[%emt 0:01:19]} 7. Nbd2 {[%emt 0:04:57]} O-O {[%emt 0:00:37]} 8. Nh4 {[%emt 0:02:07]} Bg6 {[%emt 0:01:09]} 9. Nxg6 {[%emt 0:00:59]} hxg6 {[%emt 0:00:27]} 10. e4 {[%emt 0:00:19]} dxe4 {[%emt 0:05:55]} 11. Nxe4 {[%emt 0:00:47]} Rb8 {[%emt 0:01:35]} 12. Re1 {[%emt 0:01:59]} Re8 {[%emt 0:01:05]} 13. Qc2 {[%emt 0:06:44]} Nxe4 {[%emt 0:02:54]} 14. Rxe4 {[%emt 0:01:51]} Bf6 {[%emt 0:00:42]} 15. f4 {[%emt 0:12:59]} Ne7 {[%emt 0:01:15]} 16. b3 {[%emt 0:03:44]} b6 {[%emt 0:00:25]} 17. Ba3 {[%emt 0:00:48]} Rc8 {[%emt 0:01:08]} 18. Rd1 {[%emt 0:01:20]} c6 {[%emt 0:01:21]} 19. Re2 {[%emt 0:07:59]} Qc7 {[%emt 0:00:44]} 20. Red2 {[%emt 0:10:33]} Rcd8 {[%emt 0:02:16]} 21. Qe4 {[%emt 0:03:15]} Nd5 {[%emt 0:03:54]} 22. c4 {[%emt 0:07:32]} Nc3 {[%emt 0:00:45]} 23. Qxc6 {[%emt 0:00:08]} Qxc6 {[%emt 0:00:17]} 24. Bxc6 {[%emt 0:00:06]} Nxd1 {[%emt 0:00:15]} 25. Bxe8 {[%emt 0:01:06]} Bxd4+ {[%emt 0:00:09]} 26. Kf1 {[%emt 0:00:41]} Ne3+ {[%emt 0:00:10]} 27. Ke2 {[%emt 0:01:10]} Rxe8 {[%emt 0:00:04]} 28. Rxd4 {[%emt 0:02:48]} Nc2 {[%emt 0:00:09]} 29. Rd7 {[%emt 0:01:34]} Nxa3 {[%emt 0:00:09]} 30. Rxa7 {[%emt 0:00:05]} Nc2 {[%emt 0:02:22]} 31. Rb7 {[%emt 0:00:20]} Ra8 {[%emt 0:00:24]} 32. Rxb6 {[%emt 0:00:38]} Rxa2 {[%emt 0:00:17]} 33. Kd3 {[%emt 0:00:23]} Kf8 {[%emt 0:00:55]} 34. Rb8+ {[%emt 0:01:06]} Ke7 {[%emt 0:00:07]} 35. Rb7+ {[%emt 0:00:09]} Kf6 {[%emt 0:00:23]} 36. g4 {[%emt 0:00:09]} Ne1+ {[%emt 0:01:18]} 37. Kd4 {[%emt 0:00:16]} g5 {[%emt 0:01:20]} 38. fxg5+ {[%emt 0:00:13]} Kg6 {[%emt 0:01:16]} 39. b4 {[%emt 0:00:31]} Nf3+ {[%emt 0:01:29]} 40. Kc5 {[%emt 0:00:16]} Nxg5 {[%emt 0:00:05]} 41. h4 {[%emt 0:02:37]} Ne4+ {[%emt 0:00:39]} 42. Kd4 {[%emt 0:00:14]} Nd6 {[%emt 0:00:46]} 43. Rd7 {[%emt 0:00:42]} Rd2+ {[%emt 0:00:10]} 44. Kc5 {[%emt 0:00:08]} Ne4+ {[%emt 0:03:03]} 45. Kc6 {[%emt 0:00:07]} Rxd7 {[%emt 0:00:48]} 46. Kxd7 {[%emt 0:00:06]} e5 {[%emt 0:00:17]} 47. c5 {[%emt 0:01:43]} Nf6+ {[%emt 0:00:19]} 48. Kd6 {[%emt 0:00:31]} e4 {[%emt 0:00:09]} 49. g5 {[%emt 0:00:29]} Ne8+ {[%emt 0:00:47]} 50. Kd7 {[%emt 0:00:22]} e3 {[%emt 0:00:04]} 51. Kxe8 {[%emt 0:00:32]} e2 {[%emt 0:00:07]} 52. b5 {[%emt 0:00:28]} e1=Q+ {[%emt 0:00:16]} 53. Kd7 {[%emt 0:00:08]} Qe6+ {[%emt 0:00:20]} 54. Kc7 {[%emt 0:00:06]} Qc4 {[%emt 0:01:52]} 55. Kc6 {[%emt 0:00:33]} Qa4 {[%emt 0:00:07]} 56. Kb6 {[%emt 0:00:03]} Kf5 {[%emt 0:00:11]} 57. c6 {[%emt 0:00:14]} Ke6 {[%emt 0:00:10]} 58. h5 {[%emt 0:00:19]} Kd6 {[%emt 0:00:36]} 59. h6 {[%emt 0:00:11]} gxh6 {[%emt 0:00:05]} 60. gxh6 {[%emt 0:00:03]} Qa8 {[%emt 0:00:26]} 61. h7 {[%emt 0:00:18]} Qb8+ {[%emt 0:00:05]} 62. Ka5 {[%emt 0:00:35]} Kc5 {[%emt 0:00:30]} 63. Ka4 {[%emt 0:00:05]} Qxb5+ {[%emt 0:00:28]} 64. Ka3 {[%emt 0:00:05]} Qd3+ {[%emt 0:00:31]} 65. Kb2 {[%emt 0:00:13]} Qxh7 {[%emt 0:00:08]} 66. c7 Qh8+ {[%emt 0:00:12]} 67. Kb3 {[%emt 0:00:13]} Kd4 {[%emt 0:00:25]} 68. Kb4 {[%emt 0:00:12]} Qc8 {[%emt 0:00:10]} 69. Kb5 {[%emt 0:00:07]} Qxc7 {[%emt 0:00:24]} 70. Ka6 {[%emt 0:00:07]} Qb8 {[%emt 0:00:06]} 71. Ka5 {[%emt 0:00:06]} Kc5 {[%emt 0:00:08]} 72. Ka4 {[%emt 0:00:10]} Qb4# {[%emt 0:00:05]} 0-1

[Event "French-ch Youth U12 2022"]
[Site "Agen"]
[Date "2022.04.23"]
[Round "8.5"]
[White "Alfano, Emilie"]
[Black "Neel, Laura"]
[Result "1-0"]
[ECO "B40"]
[WhiteElo "1635"]
[BlackElo "1725"]
[Annotator "NA RC COMBH"]
[PlyCount "94"]
[EventDate "2022.04.17"]
[EventType "swiss"]
[EventCountry "FRA"]
[SourceTitle "playchess.com"]
[Source "ChessBase"]
[SourceQuality "1"]
[TimeControl "5400+30"]

1. e4 {[%emt 0:00:04]} c5 {[%emt 0:00:01]} 2. Nf3 {[%emt 0:00:16]} e6 {[%emt 0:00:04]} 3. c3 {[%emt 0:00:28]} d5 {[%emt 0:00:02]} 4. exd5 {[%emt 0:00:57]} Qxd5 {[%emt 0:00:05]} 5. d4 {[%emt 0:00:30]} Nf6 {[%emt 0:00:03]} 6. Be3 {[%emt 0:00:58]} cxd4 {[%emt 0:00:05]} 7. cxd4 {[%emt 0:00:31]} Nc6 {[%emt 0:00:08]} 8. Nc3 {[%emt 0:00:54]} Qd6 {[%emt 0:00:31]} 9. a3 {[%emt 0:01:34]} a6 {[%emt 0:01:21]} 10. Bd3 Be7 {[%emt 0:00:23]} 11. O-O {[%emt 0:02:01]} O-O {[%emt 0:00:03]} 12. Qe2 {[%emt 0:01:33]} b5 {[%emt 0:02:45]} 13. Rad1 {[%emt 0:01:46]} Bb7 {[%emt 0:00:34]} 14. Bb1 {[%emt 0:01:54]} Bd8 {[%emt 0:08:13]} 15. Qd3 {[%emt 0:01:43]} Ne7 {[%emt 0:00:31]} 16. Ng5 {[%emt 0:05:40]} Ng6 {[%emt 0:02:26]} 17. Nge4 {[%emt 0:00:36]} Nxe4 {[%emt 0:01:38]} 18. Nxe4 {[%emt 0:00:10]} Qd5 {[%emt 0:00:16]} 19. f3 {[%emt 0:00:34]} Bc7 {[%emt 0:05:56]} 20. Bf2 {[%emt 0:04:36]} Rad8 {[%emt 0:17:24]} 21. Nc5 {[%emt 0:06:21]} Bc8 22. Bc2 {[%emt 0:03:47]} Qh5 {[%emt 0:05:18]} 23. Bg3 {[%emt 0:01:39]} Bxg3 {[%emt 0:01:11]} 24. hxg3 {[%emt 0:00:07]} Ne5 {[%emt 0:01:44]} 25. Qxh7+ {[%emt 0:00:58]} Qxh7 {[%emt 0:00:32]} 26. Bxh7+ {[%emt 0:00:05]} Kxh7 {[%emt 0:00:05]} 27. dxe5 {[%emt 0:00:05]} Kg6 {[%emt 0:01:22]} 28. Rd6 {[%emt 0:01:35]} Rxd6 {[%emt 0:01:11]} 29. exd6 {[%emt 0:00:06]} Rd8 {[%emt 0:00:51]} 30. Rd1 {[%emt 0:00:14]} Bd7 {[%emt 0:00:12]} 31. Nxa6 {[%emt 0:00:20]} Kf6 {[%emt 0:01:17]} 32. Nc5 {[%emt 0:01:14]} Bc6 {[%emt 0:01:10]} 33. d7 {[%emt 0:01:22]} Ke7 {[%emt 0:02:20]} 34. Kf2 {[%emt 0:00:07]} Bxd7 {[%emt 0:00:31]} 35. Rxd7+ {[%emt 0:00:05]} Rxd7 {[%emt 0:00:12]} 36. Nxd7 {[%emt 0:00:02]} Kxd7 {[%emt 0:00:04]} 37. Ke3 {[%emt 0:00:05]} Kd6 {[%emt 0:06:47]} 38. Kd3 {[%emt 0:01:29]} Kc5 {[%emt 0:06:04]} 39. b3 {[%emt 0:01:09]} f6 {[%emt 0:02:19]} 40. Ke4 {[%emt 0:05:20]} Kc6 {[%emt 0:04:18]} 41. f4 {[%emt 0:01:11]} Kc5 {[%emt 0:08:55]} 42. g4 {[%emt 0:00:11]} g6 43. f5 gxf5+ {[%emt 0:08:04]} 44. gxf5 {[%emt 0:00:59]} exf5+ {[%emt 0:00:07]} 45. Kxf5 {[%emt 0:00:06]} Kd4 {[%emt 0:00:27]} 46. a4 {[%emt 0:00:09]} b4 {[%emt 0:00:04]} 47. Kxf6 {[%emt 0:00:19]} Kd5 1-0

[Event "French-ch Youth U12 2022"]
[Site "Agen"]
[Date "2022.04.23"]
[Round "8.6"]
[White "Nogues, Norah"]
[Black "Mence, Eline"]
[Result "0-1"]
[ECO "D02"]
[WhiteElo "1096"]
[BlackElo "1499"]
[Annotator "NA RC COMBH"]
[PlyCount "110"]
[EventDate "2022.04.17"]
[EventType "swiss"]
[EventCountry "FRA"]
[SourceTitle "playchess.com"]
[Source "ChessBase"]
[SourceQuality "1"]
[TimeControl "5400+30"]

1. d4 {[%emt 0:00:04]} d5 {[%emt 0:00:09]} 2. Nf3 {[%emt 0:00:16]} Nf6 {[%emt 0:01:00]} 3. c3 {[%emt 0:00:21]} c5 {[%emt 0:01:17]} 4. Bf4 {[%emt 0:01:24]} Nc6 {[%emt 0:00:34]} 5. e3 {[%emt 0:00:39]} Qb6 {[%emt 0:01:15]} 6. Qb3 {[%emt 0:00:51]} c4 {[%emt 0:00:33]} 7. Qc2 {[%emt 0:00:26]} Bf5 {[%emt 0:00:40]} 8. Qd2 {[%emt 0:03:37]} Ne4 {[%emt 0:04:38]} 9. Qc1 {[%emt 0:01:32]} e6 {[%emt 0:02:41]} 10. Nbd2 {[%emt 0:02:11]} Qd8 {[%emt 0:02:18]} 11. Be2 {[%emt 0:01:06]} b5 {[%emt 0:01:06]} 12. Nxe4 {[%emt 0:03:08]} Bxe4 {[%emt 0:00:27]} 13. b4 {[%emt 0:05:09]} a5 {[%emt 0:09:52]} 14. a3 {[%emt 0:01:40]} Be7 {[%emt 0:04:36]} 15. O-O {[%emt 0:01:19]} O-O {[%emt 0:06:41]} 16. Ne5 {[%emt 0:02:02]} Nxe5 {[%emt 0:01:03]} 17. Bxe5 {[%emt 0:00:19]} Qb6 {[%emt 0:02:18]} 18. Bd1 {[%emt 0:05:23]} Ra6 {[%emt 0:01:26]} 19. Bc2 {[%emt 0:04:24]} Bxc2 {[%emt 0:00:38]} 20. Qxc2 {[%emt 0:00:23]} Rfa8 {[%emt 0:00:29]} 21. Rac1 {[%emt 0:11:25]} axb4 {[%emt 0:00:53]} 22. axb4 {[%emt 0:00:43]} Ra2 {[%emt 0:00:36]} 23. Qd1 {[%emt 0:03:16]} Qa7 {[%emt 0:03:40]} 24. h3 {[%emt 0:06:02]} Qa3 {[%emt 0:03:53]} 25. Bc7 {[%emt 0:08:46]} Bd8 {[%emt 0:16:42]} 26. Be5 {[%emt 0:03:27]} Be7 {[%emt 0:02:32]} 27. Qg4 {[%emt 0:02:34]} Bf8 {[%emt 0:01:01]} 28. h4 {[%emt 0:02:13]} Qb2 {[%emt 0:03:18]} 29. h5 {[%emt 0:03:06]} h6 {[%emt 0:01:13]} 30. e4 {[%emt 0:06:18]} Ra1 {[%emt 0:05:23]} 31. Qd1 {[%emt 0:04:27]} Rxc1 {[%emt 0:01:08]} 32. Qxc1 {[%emt 0:01:00]} Qxc1 {[%emt 0:00:18]} 33. Rxc1 {[%emt 0:00:07]} dxe4 {[%emt 0:00:27]} 34. Re1 {[%emt 0:01:30]} f5 {[%emt 0:02:48]} 35. f3 {[%emt 0:01:54]} exf3 {[%emt 0:00:33]} 36. gxf3 {[%emt 0:00:08]} Kf7 {[%emt 0:01:58]} 37. Kf2 {[%emt 0:00:24]} Ra2+ {[%emt 0:02:42]} 38. Ke3 {[%emt 0:00:33]} Rc2 {[%emt 0:00:22]} 39. d5 {[%emt 0:02:28]} exd5 {[%emt 0:00:22]} 40. Kd4 {[%emt 0:00:49]} Rd2+ {[%emt 0:00:27]} 41. Ke3 {[%emt 0:00:35]} Rd3+ {[%emt 0:03:08]} 42. Kf4 {[%emt 0:00:54]} Be7 {[%emt 0:00:46]} 43. Kxf5 {[%emt 0:02:29]} Rxf3+ {[%emt 0:05:11]} 44. Kg4 {[%emt 0:00:47]} Rf2 {[%emt 0:00:31]} 45. Rd1 {[%emt 0:01:52]} Ke6 46. Bd4 {[%emt 0:01:20]} Rg2+ {[%emt 0:04:33]} 47. Kf3 {[%emt 0:01:09]} Rg5 {[%emt 0:00:18]} 48. Re1+ {[%emt 0:00:35]} Kf7 {[%emt 0:00:55]} 49. Rh1 {[%emt 0:00:26]} Bf6 {[%emt 0:01:03]} 50. Bxf6 {[%emt 0:00:47]} Kxf6 {[%emt 0:00:31]} 51. Rh4 {[%emt 0:00:34]} Ke5 {[%emt 0:00:36]} 52. Rh3 {[%emt 0:00:55]} d4 {[%emt 0:00:27]} 53. cxd4+ {[%emt 0:00:19]} Kxd4 {[%emt 0:00:08]} 54. Ke2 {[%emt 0:00:31]} Re5+ {[%emt 0:02:05]} 55. Kd2 {[%emt 0:00:23]} c3+ {[%emt 0:00:22]} 0-1